Cogmind - Beta 15 @@@ ROGUE MODE // 2025.08.23 @ 16:41:15 Player: Greenblue Result: Destroyed by D-53 Grenadier with Mini Grenade Launcher Performance ------------- Evolutions (0) 0 Regions Visited (2) 400 Robots Destroyed (10) 50 Value Destroyed (272) 272 Prototype IDs (0) 0 Alien Tech Used (0) 0 Bonus (0) 0 TOTAL SCORE: 722 Bonus ------- None Cogmind --------- Core Integrity 0/250 Matter 283/300 Energy 91/100 System Corruption 0% Temperature Cool (1) Movement Walking (190) Ox1 Location -10/Mines Parts ------- > --- POWER (1) -------- (None) > --- PROPULSION (2) --- Aluminum Leg > --- UTILITY (2) ------ Large Storage Unit Targeting Computer > --- WEAPON (2) ------- (None) > --- INVENTORY (15) --- Ion Engine Ion Engine Advanced Treads Compact Wheel Compact Wheel Compact Wheel Heat Sink Medium Storage Unit Trap Scanner Insulated Plating Pulse Rifle Beamcaster Minigun Peak State ------------ > --- POWER ------------ Ion Engine > --- PROPULSION ------- Light Treads Light Treads > --- UTILITY ---------- Large Storage Unit Targeting Computer > --- WEAPON ----------- Beamcaster Assault Rifle > --- INVENTORY -------- Ion Engine Ion Engine Advanced Treads Aluminum Leg Compact Wheel Compact Wheel Heat Sink Medium Storage Unit Trap Scanner Insulated Plating Medium Laser Pulse Rifle Assault Rifle Minigun [Rating: 13] Favorites ----------- Power Ion Engine Engine Ion Engine Propulsion Light Treads Treads Light Treads Leg Aluminum Leg Utility Targeting Computer Storage Large Storage Unit Processor Targeting Computer Weapon Assault Rifle Energy Gun Beamcaster Ballistic Gun Assault Rifle Build | -11 -10 -10 ------- Run | Yrd Mat Min Slots Evolved . | . . . Power . | . . . Propulsion . | . . . Utility . | . . . Weapon . | . . . Parts Attached 14 | 6 6 2 Power 2 | 1 1 . Engine 2 | 1 1 . Core . | . . . Reactor . | . . . Propulsion 5 | 2 3 . Treads 2 | . 2 . Leg 3 | 2 1 . Wheel . | . . . Hover . | . . . Flight . | . . . Utility 3 | 1 2 . Device . | . . . Storage 2 | 1 1 . Processor 1 | . 1 . Hackware . | . . . Protection . | . . . Artifact . | . . . Weapon 4 | 2 . 2 Energy Gun 2 | . . 2 Energy Cannon . | . . . Ballistic Gun 2 | 2 . . Ballistic Cannon . | . . . Launcher . | . . . Special Weapon . | . . . Impact Weapon . | . . . Slashing Weapon . | . . . Piercing Weapon . | . . . Special Melee Weapon . | . . . Unidentified Prototypes . | . . . Parts Lost 6 | . . 6 Power 1 | . . 1 Propulsion 2 | . . 2 Utility . | . . . Weapon 3 | . . 3 Highest Loss Streak 6 | . . 6 To Critical Strikes . | . . . Average Backups 9 | 3 6 13 Power 1 | . 1 2 Propulsion 4 | 2 3 4 Utility 2 | . . 3 Weapon 2 | . 1 3 Tool/Special . | . . . Unused Backups 13 | . . 13 Power 3 | . . 3 Propulsion 4 | . . 4 Utility 4 | . . 4 Weapon 2 | . . 2 Tool/Special . | . . . Average Slot Usage (%) 96 | . 92 98 Engine 13 | . 13 13 Treads 18 | . 5 27 Leg 9 | . 22 . Storage 14 | . 14 14 Processor 11 | . 7 14 Energy Gun 4 | . . 7 Ballistic Gun 23 | . 28 20 Peak Build Rating 13 | 6 7 13 Average Rating 8 | 4 6 10 On Entrance 4 | . 6 7 Naked Turns . | . . . Heaviest Build 32 | 12 29 32 Greatest Support 40 | 20 40 40 Greatest Overweight (x) 2 | 1 1 2 Average Overweight (x) . | . . . Largest Inventory Capacity 15 | 8 15 15 Average Capacity 12 | 6 9 15 Most Carried 15 | 6 8 15 Average Carried 10 | 3 6 13 Final Capacity 15 | 8 15 15 Final Carried 13 | 6 8 13 Class Distribution -------------------- 100% | Mutant Dominant Class ---------------- Mutant | -10/Materials Mutant | -10/Mines Resources | -11 -10 -10 ----------- Run | Yrd Mat Min Matter Collected 456 | 260 95 101 Remotely . | . . . Salvage Created 348 | . 124 224 Parts 17 | . 10 7 Haulers Intercepted . | . . . Recyclers Shooed . | . . . Parts Field Recycled . | . . . Retrieved Matter . | . . . Parts Self-Destructed . | . . . Prevented . | . . . Kills | -11 -10 -10 ------- Run | Yrd Mat Min Combat Hostiles Destroyed 9 | . 5 4 Guns 9 | . 5 4 Classes Destroyed 4 | . 2 2 Recycler 1 | . . 1 Swarmer 3 | . 3 . Grunt 5 | . 2 3 Demolisher 1 | . . 1 Best Kill Streak 3 | . 3 3 Combat Bots Only 3 | . 3 2 Max Kills in Single Turn 1 | . 1 1 Gunslinging . | . . . Exploded . | . . . Melee . | . . . Uniques/NPCs Destroyed . | . . . Combat | -11 -10 -10 -------- Run | Yrd Mat Min Hostile Shots Fired 47 | . 14 33 Missed 10 | . 4 6 Hits 37 | . 10 27 Projectile 37 | . 10 27 AOE 17 | . . 17 Damage Taken 1022 | . 101 921 Core 261 | . 11 250 Absorbed by Shields . | . . . Core Remaining (%) 100 | 100 . . Volleys Fired 26 | . 8 18 Largest 2 | . 2 2 Hottest 70 | . 40 70 Shots Fired 51 | . 16 35 Gun 51 | . 16 35 Cannon . | . . . Launcher . | . . . Special . | . . . Kinetic 46 | . 16 30 Thermal 5 | . . 5 Explosive . | . . . Electromagnetic . | . . . Robot Hit Streak 11 | . 10 11 Robot Miss Streak 2 | . 1 2 Penetration Max . | . . . Secondary Targets 3 | . 1 2 Max Gunslinging Chain 1 | . 1 1 Shots Hit Robots 34 | . 12 22 Core Hits 17 | . 7 10 Critical Kills 1 | . . 1 Critical Parts Destroyed . | . . . Critical Strikes 1 | . . 1 Destroy 1 | . . 1 Melee Attacks . | . . . Impact . | . . . Slashing . | . . . Piercing . | . . . Sneak Attacks . | . . . Combat Hostiles . | . . . Follow-up Attacks . | . . . Damage Inflicted 422 | . 146 276 Guns 422 | . 146 276 Cannons . | . . . Explosions . | . . . Melee . | . . . Ramming . | . . . Kinetic 371 | . 146 225 Thermal 51 | . . 51 Explosive . | . . . Electromagnetic . | . . . Impact . | . . . Slashing . | . . . Piercing . | . . . Highest Corruption . | . . . Average Corruption . | . . . Corruption Purged . | . . . Corruption Blocked . | . . . Overload Shots . | . . . Overflow Damage . | . . . Projectiles . | . . . Explosions . | . . . Melee . | . . . Knockbacks . | . . . Impact . | . . . Kinetic . | . . . Secondary . | . . . Self-Inflicted Damage . | . . . Shots . | . . . Rammed . | . . . Targets Rammed . | . . . Kicked . | . . . Crushed . | . . . Highest Temperature 10 | . . 10 Average Temperature 2 | . . 2 Received Heat Transfer 132 | . 42 90 Siege Activations . | . . . Martial Activations . | . . . Shielding Activations . | . . . Robots Disrupted . | . . . Combat Hostiles . | . . . Robots Corrupted . | . . . Combat Hostiles . | . . . Parts Fried . | . . . Impact Corruptions . | . . . Robots Melted . | . . . Combat Hostiles . | . . . Parts Melted . | . . . Heat Transferred 148 | . . 148 Parts Sabotaged . | . . . Parts Stolen . | . . . Parts Stripped . | . . . Power Chain Reactions . | . . . Alert | -11 -10 -10 ------- Run | Yrd Mat Min Maximum Alert Level . | . . . Low Security (%) 100 | 100 100 100 Level 1 . | . . . Level 2 . | . . . Level 3 . | . . . Level 4 . | . . . Level 5 . | . . . High Security . | . . . Max Security . | . . . Peak Influence 76 | . 76 50 Initial 17 | . . 17 Average 21 | . 43 11 Influence Increases 241 | . 136 105 Destroy 0b10 Robot/C 180 | . 100 80 Destroy 0b10 Robot/NC 5 | . . 5 Destroy Leader 40 | . 20 20 Destroy Structure 1 | . 1 . Lose Combat Pursuer 15 | . 15 . Influence Decreases 231 | . 90 141 Entered New Map 29 | . . 29 Time Decay 182 | . 90 92 Lost Part 20 | . . 20 Squads Dispatched 1 | . 1 . Investigation 1 | . 1 . Extermination . | . . . Reinforcement . | . . . Assault . | . . . Garrison . | . . . Intercept . | . . . Searches Triggered . | . . . Construction Impeded . | . . . Haulers Reinforced . | . . . Active Scanning Responses . | . . . Cargo Convoy Interrupts . | . . . Stealth | -11 -10 -10 --------- Run | Yrd Mat Min Distress Signals . | . . . Communications Jammed . | . . . Distress Signals . | . . . Times Spotted 18 | . 9 9 Peak Tracking Total 6 | . 4 6 Tactical Retreats 1 | . 1 . Traps | -11 -10 -10 ------- Run | Yrd Mat Min Traps Triggered 2 | . 1 1 Indirectly . | . . . Trap Hack Attempts . | . . . Triggered . | . . . Disarmed . | . . . Reprogrammed . | . . . Reused . | . . . Traps Extracted . | . . . Installed . | . . . Triggered . | . . . Machines | -11 -10 -10 ---------- Run | Yrd Mat Min Machines Disabled . | . . . Max in Single Turn . | . . . Machines Repaired . | . . . Machines Dismantled . | . . . Machines Sabotaged . | . . . Overloaded Fab Kills . | . . . Hacking | -11 -10 -10 --------- Run | Yrd Mat Min Machines Accessed 3 | . 2 1 Terminals 2 | . 2 . Fabricators . | . . . Repair Stations . | . . . Recycling Units . | . . . Scanalyzers . | . . . Garrison Access . | . . . Total Hacks 5 | . 4 1 Successful 3 | . 2 1 Failed 2 | . 2 . Catastrophic 2 | . 2 . Database Lockouts . | . . . Manual 1 | . 1 . Terminals 4 | . 4 . Fabricators . | . . . Repair Stations . | . . . Recycling Units . | . . . Scanalyzers . | . . . Garrison Access . | . . . Terminal Hacks 3 | . 2 1 Open Door 1 | . . 1 Alert Level 2 | . 2 . Fabricator Hacks . | . . . Repair Station Hacks . | . . . Recycling Unit Hacks . | . . . Scanalyzer . | . . . Garrison Access Hacks . | . . . Unauthorized Hacks . | . . . Terminals . | . . . Fabricators . | . . . Repair Stations . | . . . Recycling Units . | . . . Scanalyzers . | . . . Garrison Access . | . . . Data Cores Recovered . | . . . Used . | . . . Hacking Detections 2 | . 2 . Full Trace Events . | . . . Feedback Events . | . . . Feedback Blocked . | . . . Robot Schematics Acquired . | . . . Robots Built . | . . . Authchips . | . . . Time . | . . . Total Robot Build Rating . | . . . Part Schematics Acquired . | . . . Parts Built . | . . . Authchips . | . . . Time . | . . . Total Part Build Rating . | . . . Parts Repaired . | . . . Time . | . . . Parts Recycled . | . . . Recycled Matter . | . . . Retrieved Matter . | . . . Retrieved Components . | . . . Parts Scanalyzed . | . . . Part Schematics Acquired . | . . . Parts Damaged . | . . . Bothacking | -11 -10 -10 ------------ Run | Yrd Mat Min Used RIF Installer . | . . . Robots Hacked . | . . . Non-combat . | . . . Combat . | . . . Robot Hacks Applied . | . . . Relay Couplers Released . | . . . Fabnet Peak Effective % . | . . . Robots Rewired . | . . . Allies Hacked . | . . . Hacks Repelled . | . . . Allies | -11 -10 -10 -------- Run | Yrd Mat Min Total Allies . | . . . Largest Group . | . . . Highest-Rated Group . | . . . Highest-Rated Ally . | . . . Total Orders . | . . . Ally Attacks . | . . . Total Damage . | . . . Kills . | . . . Allies Corrupted . | . . . Allies Melted . | . . . Intel | -11 -10 -10 ------- Run | Yrd Mat Min Active Infowar (turns) . | . . . Robot Analysis Total . | . . . Derelict Logs Recovered . | . . . Drone Launches . | . . . Drone Recoveries . | . . . Exploration | -11 -10 -10 ------------- Run | Yrd Mat Min Turns Passed 673 | 61 239 373 Spaces Moved 388 | 40 160 188 Core 3 | 3 . . Treads 213 | . 26 187 Legs 172 | 37 134 1 Wheels . | . . . Hover . | . . . Flight . | . . . Fastest Speed 50 | 50 120 160 Average Speed 142 | 116 126 160 Slowest Speed 260 | 120 190 260 Overloaded Moves . | . . . Propulsion Burnouts . | . . . Robots Hopped . | . . . Potential Cave-ins . | . . . Cave-ins Triggered . | . . . Exploration Rate (%) 26 | 3 40 37 Regions Visited 2 Branch Regions 1 Pre-discovered Areas . | . . . Known Exits Taken . | . . . Unknown Exits Taken 2 | 1 1 . Scrap Searched 2 | . . 2 Spaces Dug . | . . . Terrain Destroyed . | . . . Melee . | . . . Projectile . | . . . AOE . | . . . Terrain Rammed . | . . . Walls Destroyed . | . . . Machines Disabled . | . . . Actions | -11 -10 -10 --------- Run | Yrd Mat Min Total 458 | 51 181 226 Wait 8 | . 1 7 Move 386 | 39 159 188 Hop . | . . . Pick Up 16 | 6 3 7 Fast Attach 9 | 6 2 1 Attach 4 | . 2 2 Detach 1 | . . 1 Swap 3 | . 2 1 Drop 5 | . 4 1 Fire 26 | . 8 18 Melee . | . . . Ram . | . . . Kick . | . . . Crush . | . . . Escape Stasis . | . . . Rewire . | . . . Trap . | . . . Miscellaneous . | . . . Route ------- -11/Scrapyard -10/Materials (discovered 2 exits: *Min x2) -10/Mines History --------- Turn | Location | Event 16 | -11/Scrapyard | Discovered new exit (range 16) 62 | -11/Scrapyard | Entered Materials 187 | -10/Materials | Discovered new exit (range 7) 212 | -10/Materials | Discovered new exit (range 13) 301 | -10/Materials | Entered Mines 318 | -10/Mines | Build established: Mutant 322 | -10/Mines | Met a Derelict who couldn't figure out how to use a Trap Extractor 622 | -10/Mines | Assembled infested the area 627 | -10/Mines | Assisted by a Guerilla fighting off Assembled 656 | -10/Mines | Core integrity fell below 50% 671 | -10/Mines | Core integrity fell below 20% 674 | -10/Mines | Destroyed by D-53 Grenadier with Mini Grenade Launcher Last Messages --------------- as-71099 destroyed. The unstable cave ceiling collapses. Assault Rifle destroyed. Laser Drill disabled. The unstable cave ceiling collapses. K-01 Serf collects debris. The unstable cave ceiling collapses. Ion Engine destroyed. The unstable cave ceiling collapses. Lgt. Treads destroyed. D-53 Grenadier destroyed. Switching to secondary target: D-53 Grenadier. K-01 Serf collects debris. The unstable cave ceiling collapses. K-01 Serf collects debris. The unstable cave ceiling collapses. T-07 Excavator destroyed. K-01 Serf collects debris. Med. Laser destroyed. Assault Rifle destroyed. Map ----- +----------------------------------------------------+ | #######??????????????????????????????????????????? | | !=%#??????????????????????????????????????????? | | ####][####???????????????????????????????????????? | | ???# #???????????????????????????????????????? | | ???# #???????????????????????????????????????? | | ???# ## #???????????????????????????????????????? | | #### ## #???????????????????????????????????????? | | ## #???????????????????????????????????????? | | ####### #????????????????????? ??????????????? | | ??????# #???????????????????? ????????????? | | ??????# ##??????????????????? #??????????? | | ??????# #??????????????????? #??????????? | | ??????# ##?????????????????? #??????????? | | ??????# ##????????????????? " ##?????????? | | ??????# ##??###??????????## #?????????? | | ??????# #??# ?????????? a #??????????? | | ??????## #??# #???????### #???????????? | | ???????### ###??# #????#### # # #???????????? | | ?????????# #????# #????# %= ######??????? | | ?????????# ###??# #???## *%|% %?????? | | ?????????# #?## #?### d k= ??????? | | ?????????# ### ### #???????????? | | ?????????## ## #?????????????? | | ###???????# ## # ##?????????????? | | ##??????# " ###??????????????? | | = #??????# @ #????????????????? | | % ##??????### ## ### ##????????????????? | | !*#?????????# ######?## ##?????????????????? | | =%#?????????# #???????## ##??????????????????? | | #%#?????????# #????????#######???????????????????? | | # #?????????# #??????????????????????????????????? | | #=#????????? ??????????????????????????????????? | | # #????????? ??????????????????????????????????? | | # #????????? ??????????????????????????????????? | | # #????????? "??????????????????????????????????? | | /#????????? "??????????????????????????????????? | | ###????????? "??????????????????????????????????? | | ???????????? ???????????????????????????????????? | | ????????????##???????????????????????????????????? | | ?????????????????????????????????????????????????? | | ?????????????????????????????????????????????????? | | ?????????????????????????????????????????????????? | | ?????????????????????????????????????????????????? | | ###??????????????????????????????????????????????? | | #??????????????????????????????????????????????? | | # #??????????????????????????????????????????????? | | # #??????????????????????????????????????????????? | | # #??????????????????????????????????????????????? | | # #??????????????????????????????????????????????? | | # #??????????????????????????????????????????????? | +----------------------------------------------------+ Best States ------------- Heat Dissipation 25 Energy Generation 10 Energy Capacity 250 Matter Stores 300 Matter Capacity 300 Sight Range 16 Terrain Scan Density 10 Evasion (%) 55 Targeting Accuracy 5 Recoil Reduction 2 Item Schematics ----------------- None Robot Schematics ------------------ None Fabricated ------------ Nothing Repaired ---------- Nothing Alien Tech Used ----------------- None Achievements -------------- None Challenges ------------ None Game ------ Seed CompactCommNullifier Manual? 0 Play Time 00:07:51 Cumulative 42.0 hours Start 2025.08.23 @ 16:34:16 End 2025.08.23 @ 16:41:15 Sessions 1 Manual Loads 0 Difficulty Rogue Special Mode None Game No. 35 Rogue 35 Adventurer 0 Explorer 0 Win Type - Total 0 Types 0/0/0/0/0/0/0/0/0/0 Lore% 10 Gallery% 28 Achievement% 23 Wizard Run 0 Options --------- Layout 0 ASCII 0 Keyboard 0 Movement Numpad Keybinds 0 Fullscreen 2 Font 24/Smallcaps Map View 76x50 Zoom Use 0% Tactical HUD 0 Map Filters NONE Filters NONE Steam 1 RUN: 0c3b451c-8524-43b0-95b6-37d7cd62cf21